bitfinex-derivatives/quotes_SOLF0:USTF0_20220110
["timestamp","ask_amount","ask_price","bid_price","bid_amount"]
[1641822003409,6.22625996,136.35,136.29,4.0]
[1641822003811,4.15089299,136.35,136.3,3.57040512]
[1641822004310,6.22630775,136.37,136.3,3.57040512]
[1641822004511,1.833,136.36,136.3,3.57040512]
[1641822004712,1.833,136.36,136.26,3.57040512]
[1641822005212,4.15089299,136.35,136.26,3.57040512]
[1641822005611,4.15089299,136.35,136.31,4.0]
[1641822006012,4.15089299,136.35,136.26,7.57040512]
[1641822006212,6.22634526,136.37,136.26,4.0]
[1641822006415,1.833,136.36,136.26,7.151]
[1641822006613,4.15089299,136.34,136.32,4.0]
[1641822006814,4.15089299,136.34,136.32,11.597]
[1641822007023,4.15089299,136.35,136.32,11.597]
[1641822007214,4.15089299,136.35,136.32,7.597]
[1641822007415,6.22627953,136.37,136.34,4.0]
[1641822007615,6.22627953,136.37,136.32,7.597]
[1641822007822,4.15089299,136.37,136.32,7.597]
[1641822008021,4.15089299,136.37,136.34,4.0]
[1641822008216,4.15089299,136.37,136.33,4.0]
[1641822008417,4.15089299,136.38,136.33,3.56981782]
[1641822008818,4.15089299,136.36,136.29,12.16]
[1641822009223,4.15089299,136.38,136.3,3.57016278]
[1641822009424,4.15089299,136.38,136.33,4.0]
[1641822009621,4.15089299,136.38,136.3,70.03596278]
[1641822009823,4.15089299,136.38,136.33,4.0]
[1641822010022,6.22609756,136.38,136.33,4.0]
[1641822010926,6.22609756,136.38,136.3,66.4658]
[1641822011329,1.833,136.37,136.31,7.57056993]
[1641822011625,4.15089299,136.36,136.31,4.0]
[1641822012524,4.15089299,136.36,136.24,66.5453]
[1641822012525,10.53789299,136.36,136.29,4.0]
[1641822012825,1.833,136.35,136.25,70.1527]
[1641822013224,15.53075323,136.33,136.28,4.0]
[1641822013423,21.52375323,136.33,136.28,4.0]
[1641822013626,4.15089299,136.32,136.29,3.57126373]
[1641822014424,4.15089299,136.32,136.27,3.57126373]
[1641822014625,4.15089299,136.32,136.29,4.0]
[1641822016226,19.68164622,136.32,136.29,4.0]
[1641822016729,4.15089299,136.31,136.29,4.0]
[1641822019830,19.68164622,136.31,136.29,4.0]
[1641822020231,4.15089299,136.3,136.29,4.0]
[1641822021432,4.15089299,136.31,136.29,4.0]
[1641822021632,4.15089299,136.31,136.26,8.041]
[1641822021832,4.15089299,136.32,136.3,4.0]
[1641822022033,4.15089299,136.32,136.26,12.041]
[1641822022434,4.15089299,136.32,136.26,8.041]
[1641822022634,4.15089299,136.32,136.3,4.0]
[1641822022836,4.15089299,136.32,136.29,4.0]
[1641822023034,13.46689299,136.32,136.27,3.57131176]
[1641822023234,1.834,136.31,136.25,70.1527]
[1641822023436,4.51330234,136.31,136.23,81.45375323]
[1641822023637,4.15089299,136.3,136.26,3.57224012]
[1641822023837,1.834,136.29,136.26,3.57224012]
[1641822024039,10.007,136.29,136.26,3.57224012]
[1641822024238,12.68630234,136.29,136.24,7.57224012]
[1641822024639,4.15089299,136.28,136.24,4.0]
[1641822025040,4.15089299,136.28,136.25,3.5725774]
[1641822025239,6.83019533,136.28,136.25,3.5725774]
[1641822025541,4.15089299,136.27,136.25,3.5725774]
[1641822026440,4.15089299,136.28,136.25,7.5725774]
[1641822026639,4.15089299,136.28,136.25,3.5725774]
[1641822027040,4.15089299,136.28,136.21,67.2137]
[1641822027240,4.15089299,136.28,136.24,4.0]
[1641822027846,4.15089299,136.28,136.25,3.57264781]
[1641822030049,4.15089299,136.28,136.24,3.57264781]
[1641822030746,5.98489299,136.28,136.24,3.57264781]
[1641822031045,4.15089299,136.27,136.22,3.57264781]
[1641822031246,6.82614435,136.27,136.22,3.57264781]
[1641822031946,4.15089299,136.26,136.22,3.57264781]
[1641822032549,4.15089299,136.27,136.22,3.57264781]
[1641822034248,2.67473832,136.26,136.22,3.57264781]
[1641822034849,4.15089299,136.25,136.22,3.57264781]
[1641822035048,13.06589299,136.25,136.22,3.57264781]
[1641822035249,13.06589299,136.25,136.2,7.57264781]
[1641822035652,4.15089299,136.24,136.21,3.57264781]
[1641822037153,4.15089299,136.24,136.23,4.0]
[1641822037452,4.15089299,136.24,136.23,7.57264781]
[1641822037851,4.15089299,136.27,136.23,7.57264781]
[1641822038051,4.15089299,136.27,136.23,3.57264781]
[1641822038253,4.15089299,136.27,136.25,4.0]
[1641822038553,4.15089299,136.28,136.26,4.0]
[1641822038752,15.53075323,136.3,136.27,4.0]
[1641822038954,70.5429,136.36,136.29,4.0]
[1641822038955,15.53075323,136.31,136.29,4.0]
[1641822039152,15.53075323,136.31,136.29,12.001]
[1641822039352,15.53075323,136.31,136.29,8.001]
[1641822039552,15.53075323,136.31,136.3,4.0]
[1641822039953,2.67315101,136.34,136.3,4.0]
[1641822040255,3.48564948,136.31,136.3,4.1508665]
[1641822040654,3.48564948,136.33,136.3,4.1508665]
[1641822040857,3.48564948,136.33,136.3,8.1508665]
[1641822041053,3.48564948,136.33,136.3,4.0]
[1641822041455,3.48564948,136.33,136.31,4.0]
[1641822041958,3.48564948,136.34,136.31,4.0]
[1641822042359,3.48564948,136.32,136.31,4.0]
[1641822042557,3.48564948,136.32,136.26,4.0]
[1641822042759,3.48564948,136.34,136.31,4.0]
[1641822043461,3.48564948,136.34,136.31,10.152]
[1641822043659,3.48564948,136.34,136.33,4.0]
[1641822044059,15.53075323,136.35,136.33,4.0]
[1641822044460,3.48564948,136.34,136.31,6.152]
[1641822045062,3.48564948,136.34,136.32,4.15006161]
[1641822045562,3.48564948,136.37,136.32,4.15006161]
[1641822045861,3.48564948,136.37,136.33,4.0]
[1641822046064,3.48564948,136.37,136.32,4.15006161]
[1641822046563,3.48564948,136.37,136.35,4.0]
[1641822046762,3.48564948,136.37,136.35,12.949]
[1641822047263,2.67170353,136.36,136.35,12.949]
[1641822047867,3.48564948,136.36,136.35,17.09836639]
[1641822048265,3.48564948,136.38,136.35,17.09836639]
[1641822048566,3.48564948,136.38,136.36,4.0]
[1641822049168,3.48564948,136.38,136.35,8.949]
[1641822050167,3.48564948,136.39,136.35,8.949]
[1641822050371,3.48564948,136.39,136.37,4.0]
[1641822050567,10.94,136.4,136.37,4.0]
[1641822050770,15.53075323,136.41,136.39,4.0]
[1641822050969,15.53075323,136.41,136.4,4.0]
[1641822051170,15.53075323,136.41,136.38,4.0]
[1641822051370,24.40475323,136.41,136.36,4.0]
[1641822051567,24.40475323,136.41,136.31,4.0]
[1641822051768,24.40475323,136.41,136.36,4.0]
[1641822051968,26.23775323,136.41,136.36,4.0]
[1641822052570,8.874,136.41,136.34,4.0]
[1641822052769,10.707,136.41,136.34,4.0]
[1641822053170,10.707,136.41,136.35,4.14943271]
[1641822053370,2.66532911,136.4,136.35,4.14943271]
[1641822053771,1.833,136.39,136.29,70.592]
[1641822054270,17.36375323,136.39,136.32,4.0]
[1641822055171,2.66532911,136.38,136.29,70.592]
[1641822055470,1.833,136.37,136.3,4.15004678]
[1641822055773,1.833,136.37,136.32,4.0]
[1641822055972,1.833,136.37,136.31,4.0]
[1641822056171,6.162,136.37,136.32,4.0]
[1641822056372,6.162,136.37,136.33,4.0]
[1641822056572,6.162,136.37,136.32,4.15004678]
[1641822056573,6.162,136.37,136.35,4.0]
[1641822057677,1.833,136.4,136.31,4.0]
[1641822057877,15.53075323,136.41,136.37,4.0]
[1641822058278,15.53075323,136.41,136.36,4.0]
[1641822058477,2.66392054,136.4,136.33,6.305]
[1641822058675,2.66392054,136.4,136.37,4.0]
[1641822059075,2.66392054,136.4,136.36,8.196]
[1641822059276,2.66392054,136.4,136.37,4.0]
[1641822059876,2.66392054,136.41,136.36,8.196]
[1641822060876,2.66392054,136.41,136.33,4.0]
[1641822061078,1.833,136.4,136.32,4.0]
[1641822061275,2.66392054,136.41,136.3,65.7911]
[1641822061276,20.02767377,136.41,136.3,65.7911]
[1641822061477,20.02767377,136.41,136.33,4.0]
[1641822061682,20.02767377,136.41,136.3,65.7911]
[1641822061978,47.16067377,136.41,136.31,4.14994073]
[1641822062478,10.66392054,136.4,136.31,4.14994073]
[1641822062680,1.833,136.39,136.3,4.0]
[1641822062878,1.833,136.39,136.29,70.592]
[1641822063078,1.833,136.39,136.3,4.0]
[1641822063278,1.833,136.39,136.28,4.0]
[1641822063279,15.53075323,136.36,136.28,4.0]
[1641822063478,1.833,136.35,136.26,69.7305]
[1641822063879,1.833,136.35,136.27,4.15122083]
[1641822064083,20.0,136.34,136.27,4.15122083]
[1641822064280,1.834,136.33,136.27,4.15122083]
[1641822064479,8.875,136.33,136.2,15.53075323]
[1641822064879,2.07621151,136.32,136.2,15.53075323]
[1641822065079,1.834,136.31,136.19,19.53075323]
[1641822065679,1.834,136.31,136.24,4.0]
[1641822065878,6.2286339,136.3,136.27,4.0]
[1641822066079,6.2286339,136.3,136.21,4.0]
[1641822066381,6.81634293,136.3,136.26,4.0]
[1641822066582,6.81634293,136.3,136.2,4.0]
[1641822066783,4.15242239,136.29,136.25,4.0]
[1641822067081,4.15242239,136.29,136.19,4.0]
[1641822067280,4.15242239,136.29,136.25,4.0]
[1641822068281,6.2284621,136.31,136.21,4.0]
[1641822068780,4.15242239,136.31,136.28,4.0]
[1641822068981,2.67103988,136.3,136.28,4.0]
[1641822069183,2.67103988,136.3,136.29,4.0]
[1641822069582,4.15242239,136.31,136.29,4.0]
[1641822069783,4.15242239,136.3,136.25,4.0]
[1641822070183,15.53075323,136.33,136.29,4.0]
[1641822070384,15.53075323,136.33,136.27,4.0]
[1641822070783,8.319,136.34,136.27,4.0]
[1641822071282,8.319,136.34,136.21,4.0]
[1641822071485,4.50420822,136.33,136.28,4.0]
[1641822071686,6.15636144,136.33,136.31,4.0]
[1641822071983,6.15636144,136.33,136.29,4.0]
[1641822072185,3.48615322,136.32,136.26,4.0]
[1641822072383,3.48615322,136.32,136.25,4.0]
[1641822072584,3.48615322,136.32,136.26,4.0]
[1641822072785,5.32015322,136.32,136.26,4.0]
[1641822072984,5.32015322,136.32,136.21,19.53075323]
[1641822073183,5.32015322,136.32,136.22,4.0]
[1641822073584,3.48615322,136.31,136.22,4.0]
[1641822074988,3.48615322,136.31,136.27,4.0]
[1641822075185,3.48615322,136.31,136.22,4.0]
[1641822075386,3.48615322,136.31,136.21,4.0]
[1641822075586,3.48615322,136.31,136.27,4.0]
[1641822076691,3.48615322,136.31,136.24,4.0]
[1641822076890,1.834,136.3,136.24,4.0]
[1641822077086,11.102,136.3,136.24,4.0]
[1641822077488,3.48615322,136.29,136.24,4.0]
[1641822078788,1.834,136.28,136.24,4.0]
[1641822078988,1.834,136.28,136.22,4.0]
[1641822079187,1.834,136.28,136.2,71.1308]
[1641822079389,3.48615322,136.27,136.21,4.0]
[1641822079588,1.834,136.26,136.21,4.0]
[1641822079791,1.834,136.26,136.22,4.15251223]
[1641822080293,3.48615322,136.25,136.22,4.15251223]
[1641822080992,3.48615322,136.25,136.22,1.223e-05]
[1641822081192,4.0,136.23,136.16,69.2492]
[1641822081396,4.0,136.21,136.15,15.53075323]
[1641822081593,4.0,136.2,136.15,15.53075323]
[1641822081795,6.243,136.2,136.15,15.53075323]
[1641822081995,8.078,136.2,136.13,68.9547]
[1641822082193,4.0,136.19,136.1,15.53075323]
[1641822082394,1.836,136.18,136.1,15.53075323]
[1641822082596,5.98986778,136.18,136.1,15.53075323]
[1641822082997,4.15386778,136.18,136.1,19.53075323]
[1641822083195,4.15386778,136.17,136.1,4.0]
[1641822083396,4.15386778,136.17,136.11,4.0]
[1641822083597,4.15386778,136.17,136.12,4.0]
[1641822083797,6.778e-05,136.17,136.14,4.0]
[1641822083997,6.778e-05,136.17,136.14,13.102]
[1641822084197,15.53075323,136.23,136.14,13.102]
[1641822084498,1.836,136.25,136.14,9.102]
[1641822084499,4.0,136.24,136.14,9.102]
[1641822084696,1.835,136.23,136.14,9.102]
[1641822085097,1.835,136.24,136.14,9.102]
[1641822085497,2.2408146,136.22,136.14,9.102]
[1641822085898,1.835,136.22,136.14,9.102]
[1641822086399,2.2408146,136.21,136.14,9.102]
[1641822086899,2.2408146,136.21,136.14,13.102]
[1641822087299,2.2408146,136.21,136.14,9.102]
[1641822087506,2.2408146,136.21,136.15,4.0]
[1641822087699,2.2408146,136.24,136.14,9.102]
[1641822088200,1.835,136.23,136.11,4.0]
[1641822088399,10.689,136.24,136.11,4.0]
[1641822088799,2.2408146,136.22,136.11,4.0]
[1641822088999,1.836,136.21,136.09,89.85115323]
[1641822089199,9.986,136.21,136.09,89.85115323]
[1641822089398,9.986,136.21,136.09,85.85115323]
[1641822089601,2.2408146,136.2,136.09,70.3204]
[1641822089899,1.836,136.19,136.09,70.3204]
[1641822090500,2.2408146,136.18,136.09,70.3204]
[1641822090698,8.1598146,136.18,136.09,70.3204]
[1641822090901,4.0,136.17,136.09,70.3204]
[1641822091100,1.836,136.16,136.09,70.3204]
[1641822091602,2.2408146,136.15,136.09,70.3204]
[1641822091801,8.9828146,136.15,136.09,70.3204]
[1641822092002,8.9828146,136.15,136.05,4.0]
[1641822092203,8.9828146,136.15,136.04,157.73265323]
[1641822092500,1.836,136.14,136.05,4.0]
[1641822092701,2.2408146,136.14,136.05,4.0]
[1641822092903,2.2408146,136.14,136.05,6.47969321]
[1641822093703,2.2408146,136.14,136.06,2.47969321]
[1641822094102,4.0,136.13,136.06,2.47969321]
[1641822094402,5.836,136.13,136.06,2.47969321]
[1641822094603,2.2408146,136.12,136.05,2.47969321]
[1641822094904,1.837,136.11,136.05,2.47969321]
[1641822095503,2.2408146,136.1,136.02,85.93285323]
[1641822095703,2.2408146,136.1,136.02,70.4021]
[1641822096103,6.2408146,136.1,136.02,70.4021]
[1641822096303,2.2408146,136.1,136.02,70.4021]
[1641822096503,2.2408146,136.1,136.03,4.15639818]
[1641822096703,1.837,136.09,136.03,4.15639818]
[1641822096903,9.896,136.09,136.03,4.15639818]
[1641822097305,2.2408146,136.08,136.03,4.15639818]
[1641822097508,1.837,136.12,136.04,4.0]
[1641822097803,19.53075323,136.18,136.04,5.981]
[1641822097804,1.837,136.15,136.04,5.981]
[1641822098005,1.836,136.17,136.04,5.981]
[1641822098204,1.836,136.17,136.04,9.981]
[1641822098405,4.0,136.16,136.05,2.4703135]
[1641822098604,1.836,136.15,136.05,2.4703135]
[1641822098803,5.836,136.15,136.05,2.4703135]
[1641822099005,3.26434987,136.14,136.06,4.15524407]
[1641822099606,9.10034987,136.15,136.06,4.15524407]
[1641822100006,4.0,136.13,136.04,4.15524407]
[1641822100207,4.0,136.12,136.04,4.15524407]
[1641822100605,3.26434987,136.11,136.04,4.15524407]
[1641822102610,4.0,136.09,136.04,4.15524407]
[1641822102812,1.837,136.08,135.98,15.53075323]
[1641822103010,4.0,136.07,135.98,15.53075323]
[1641822103209,4.0,136.03,135.98,15.53075323]
[1641822103409,1.838,136.02,135.99,4.1577163]
[1641822103810,3.26434987,136.01,135.99,4.1577163]
[1641822104210,3.26434987,136.02,135.97,4.0]
[1641822104509,3.26434987,136.02,135.96,4.0]
[1641822104710,3.26434987,136.07,135.98,4.1577163]
[1641822104910,6.198,136.04,135.98,4.1577163]
[1641822105110,6.198,136.04,135.96,8.1577163]
[1641822105312,6.198,136.04,135.96,4.1577163]
[1641822105512,3.26434987,136.03,135.97,4.1577163]
[1641822106113,3.26434987,136.03,135.93,4.1577163]
[1641822106314,9.10234987,136.03,135.93,4.1577163]
[1641822106516,5.10234987,136.03,135.93,4.1577163]
[1641822106914,3.26434987,136.02,135.93,4.1577163]
[1641822107516,7.26434987,136.02,135.93,4.1577163]
[1641822107915,3.26434987,136.01,135.93,4.1577163]
[1641822108115,14.17734987,136.01,135.93,4.1577163]
[1641822108514,4.0,135.99,135.93,4.1577163]
[1641822108717,1.838,135.98,135.93,4.1577163]
[1641822108918,13.49434987,135.98,135.93,4.1577163]
[1641822109319,17.49434987,135.98,135.93,4.1577163]
[1641822109622,3.26434987,135.97,135.9,4.1577163]
[1641822110216,11.49134987,135.97,135.9,4.1577163]
[1641822110419,8.227,135.97,135.89,4.1577163]
[1641822111018,3.26434987,135.96,135.89,4.1577163]
[1641822112317,3.26434987,135.96,135.88,4.1577163]
[1641822115324,3.26434987,135.96,135.88,8.1577163]
[1641822116226,3.26434987,135.96,135.89,4.1577163]
[1641822116827,3.26434987,135.99,135.88,8.1577163]
[1641822117028,6.152,135.96,135.88,4.1577163]
[1641822117226,6.152,135.96,135.89,4.1577163]
[1641822117628,6.152,135.96,135.88,8.1577163]
[1641822118229,6.152,135.96,135.89,4.1577163]
[1641822118629,5.9052744,135.95,135.88,8.1577163]
[1641822118829,4.0662744,135.95,135.88,4.1577163]
[1641822119229,6.152,135.96,135.89,4.1577163]
[1641822119430,1.839,136.02,135.94,4.0]
[1641822119632,1.838,136.05,135.94,13.032]
[1641822120032,1.838,136.05,135.95,4.1577163]
[1641822120232,4.0651067,136.02,135.95,4.1577163]
[1641822120432,1.838,136.01,135.95,4.1577163]
[1641822120935,4.0651067,136.0,135.95,4.1577163]
[1641822121836,8.0651067,136.0,135.95,4.1577163]
[1641822122036,1.838,135.99,135.8,1.838]
[1641822122235,11.9791067,135.99,135.89,72.0869]
[1641822122436,10.1411067,135.99,135.89,72.0869]
[1641822122638,1.839,135.98,135.89,74.56681255]
[1641822123141,6.076,135.99,135.89,74.56681255]
[1641822123336,6.076,135.99,135.9,3.4221828]
[1641822123337,4.15962204,135.97,135.9,3.4221828]
[1641822123838,4.15962204,135.98,135.9,3.4221828]
[1641822124240,4.15962204,135.97,135.9,3.4221828]
[1641822124742,4.15962204,135.96,135.9,3.4221828]
[1641822125040,13.33562204,135.96,135.91,2.48153009]
[1641822125441,4.15962204,135.95,135.91,2.48153009]
[1641822125841,9.176,135.96,135.92,3.4221828]
[1641822126342,4.06151422,135.95,135.92,3.4221828]
[1641822126745,4.06151422,135.95,135.9,3.4221828]
[1641822127144,4.06151422,135.97,135.9,3.4221828]
[1641822129652,4.0,135.96,135.9,3.4221828]
[1641822129855,1.839,135.95,135.9,3.4221828]
[1641822130052,7.922,135.96,135.91,2.48661406]
[1641822130452,4.06151422,135.95,135.92,3.4221828]
[1641822130852,4.06151422,135.95,135.93,3.4221828]
[1641822131454,4.06151422,135.95,135.91,2.48661406]
[1641822131651,1.839,135.94,135.91,2.48661406]
[1641822132152,1.839,135.95,135.88,19.53075323]
[1641822132352,1.839,135.95,135.87,15.53075323]
[1641822132555,6.083,135.96,135.87,15.53075323]
[1641822132953,4.15661167,135.94,135.88,2.31776258]
[1641822133555,4.15661167,135.95,135.88,2.31776258]
[1641822133758,1.839,135.94,135.88,2.31776258]
[1641822133956,5.839,135.94,135.88,2.31776258]
[1641822134158,5.839,135.94,135.89,2.49591221]
[1641822134555,4.15661167,135.93,135.88,0.01367479]
[1641822134759,5.839,135.92,135.88,0.01367479]
[1641822134958,4.0,135.9,135.86,15.53075323]
[1641822135167,5.839,135.89,135.86,15.53075323]
[1641822135359,4.0,135.88,135.83,40.92016219]
[1641822135561,1.84,135.87,135.83,38.42016219]
[1641822135762,10.797,135.87,135.83,38.42016219]
[1641822135960,14.95543027,135.87,135.83,37.06718782]
[1641822136161,14.95543027,135.87,135.81,33.31101727]
[1641822136360,14.95543027,135.87,135.81,25.31101727]
[1641822136361,13.11543027,135.87,135.81,25.31101727]
[1641822136560,8.957,135.87,135.81,25.31101727]
[1641822137359,8.957,135.87,135.77,60.25182071]
[1641822137562,4.15843312,135.86,135.82,1.85416063]
[1641822137958,4.15843312,135.86,135.78,1.85416063]
[1641822138359,4.15843312,135.86,135.82,4.0]
[1641822138559,4.15843312,135.86,135.81,4.0]
[1641822138758,3.312e-05,135.86,135.82,4.0]
[1641822138960,68.1538,135.94,135.84,4.0]
[1641822138961,1.84,135.94,135.84,4.0]
[1641822139159,12.659,135.97,135.85,4.0]
[1641822139361,12.659,135.97,135.85,10.614]
[1641822139662,12.659,135.97,135.85,6.614]
[1641822140360,12.659,135.97,135.86,1.70003364]
[1641822140959,1.839,135.97,135.86,1.70003364]
[1641822141161,1.839,135.97,135.86,5.70003364]
[1641822141660,1.839,135.97,135.87,5.70003364]
[1641822141859,1.839,135.99,135.89,4.0]
[1641822142059,1.839,135.99,135.89,6.494]
[1641822142259,1.839,136.0,135.89,6.494]
[1641822142662,1.839,136.0,135.9,5.70003364]
[1641822142863,12.638,136.02,135.9,1.70003364]
[1641822143162,12.638,136.02,135.91,1.70003364]
[1641822143662,12.32057522,136.01,135.89,1.70003364]
[1641822143862,1.838,136.0,135.89,1.70003364]
[1641822144863,1.838,136.01,135.89,1.70003364]
[1641822145662,10.50959291,136.0,135.88,1.70003364]
[1641822145864,1.839,135.99,135.88,1.70003364]
[1641822146065,1.839,135.99,135.88,5.70003364]
[1641822146266,1.839,135.99,135.88,1.70003364]
[1641822146466,1.839,135.99,135.89,4.0]
[1641822146667,1.839,136.01,135.89,10.009]
[1641822147068,1.839,136.01,135.92,4.0]
[1641822147269,12.638,136.02,135.92,8.852]
[1641822147670,12.638,136.02,135.93,1.70003364]
[1641822148671,12.638,136.02,135.92,1.70003364]
[1641822148871,18.484,136.02,135.92,1.70003364]
[1641822149072,18.484,136.02,135.94,1.70003364]
[1641822149474,18.484,136.02,135.92,1.70003364]
[1641822149972,10.50877293,136.01,135.92,1.70003364]
[1641822151372,18.484,136.02,135.92,1.70003364]
[1641822151772,22.484,136.02,135.92,1.70003364]
[1641822152174,4.0,136.01,135.92,1.70003364]
[1641822152374,1.838,136.0,135.92,1.70003364]
[1641822153674,1.838,136.01,135.92,1.70003364]
[1641822154177,5.838,136.01,135.92,1.70003364]
[1641822155175,4.15600799,136.0,135.92,1.70003364]
[1641822155379,1.838,135.99,135.92,1.70003364]
[1641822155875,4.15600799,135.98,135.92,1.70003364]
[1641822156681,14.66574022,136.0,135.92,1.70003364]
[1641822156877,1.838,135.99,135.92,1.70003364]
[1641822157678,4.15600799,135.98,135.92,1.70003364]
[1641822158581,4.15600799,136.0,135.92,1.70003364]
[1641822158984,4.15600799,135.97,135.92,1.70003364]
[1641822159382,4.15600799,135.99,135.92,1.70003364]
[1641822159783,4.15600799,135.96,135.92,1.70003364]
[1641822160187,4.15600799,136.0,135.93,4.0]
[1641822160385,4.15600799,136.0,135.93,10.337]
[1641822160594,4.15600799,136.0,135.94,1.70003364]
[1641822160986,4.15600799,136.0,135.94,5.70003364]
[1641822161187,4.15600799,136.02,135.94,1.70003364]
[1641822161388,4.15600799,136.02,135.94,5.70003364]
[1641822161788,4.15600799,136.02,135.97,4.0]
[1641822161987,4.15600799,136.02,135.97,5.821]
[1641822162592,14.66165531,136.07,135.98,1.70003364]
[1641822163695,1.837,136.06,135.98,1.70003364]
[1641822163894,10.148,136.06,135.98,1.70003364]
[1641822164293,4.15600799,136.05,135.97,1.70003364]
[1641822164693,4.15600799,136.05,135.99,1.70003364]
[1641822165293,1.837,136.06,135.97,1.70003364]
[1641822165593,4.15600799,136.04,136.0,1.70003364]
[1641822165994,4.15600799,136.05,135.97,10.16503364]
[1641822166193,4.15600799,136.05,136.0,4.0]
[1641822166392,4.15600799,136.05,136.0,7.82]
[1641822166593,15.44455607,136.09,136.0,11.82]
[1641822166594,4.15600799,136.07,136.0,11.82]
[1641822166995,4.15600799,136.08,136.01,1.70003364]
[1641822167594,8.15600799,136.08,136.01,1.70003364]
[1641822167799,1.837,136.07,135.98,1.70003364]
[1641822168295,18.66071098,136.06,135.97,1.70003364]
[1641822168495,1.838,136.05,135.97,1.70003364]
[1641822168695,13.45900799,136.05,135.97,1.70003364]
[1641822169095,4.15600799,136.04,135.97,1.70003364]
[1641822172901,8.15600799,136.04,135.97,1.70003364]
[1641822173300,5.838,136.03,135.97,1.70003364]
[1641822173501,20.50268657,136.03,135.93,69.75743364]
[1641822173902,4.0,136.01,135.93,69.75743364]
[1641822174102,1.838,136.0,135.94,1.70003364]
[1641822174502,5.99400799,136.0,135.94,1.70003364]
[1641822174704,4.15600799,136.0,135.94,1.70003364]
[1641822175603,4.0,135.99,135.94,1.70003364]
[1641822175804,6.613,135.99,135.94,1.70003364]
[1641822176004,5.99400799,135.98,135.94,1.70003364]
[1641822176404,4.15600799,135.97,135.91,1.70003364]
[1641822178204,10.42200799,135.98,135.91,1.70003364]
[1641822178605,4.15600799,135.97,135.91,1.70003364]
[1641822180008,4.15600799,136.0,135.91,1.70003364]
[1641822180510,4.15600799,135.96,135.92,2.48657388]
[1641822180907,4.15600799,135.99,135.92,2.48657388]
[1641822181308,15.44455607,136.03,135.93,1.70003364]
[1641822181608,4.15515588,135.98,135.93,1.70003364]
[1641822182009,4.15515588,136.02,135.93,1.70003364]
[1641822183011,4.15515588,136.02,135.92,1.70003364]
[1641822183411,4.15515588,136.02,135.94,1.70003364]
[1641822183912,4.15515588,136.03,135.93,4.18583788]
[1641822184312,4.15515588,136.01,135.95,1.70003364]
[1641822184512,16.09615588,136.01,135.95,1.70003364]
[1641822184712,4.0,135.99,135.94,1.70003364]
[1641822185114,1.838,136.0,135.94,1.70003364]
[1641822185315,4.15515588,135.98,135.94,4.18583788]
[1641822185516,1.838,135.97,135.94,4.18583788]
[1641822186015,1.838,135.97,135.95,1.70003364]
[1641822186215,7.397,135.98,135.95,1.70003364]
[1641822186216,4.15515588,135.96,135.95,1.70003364]
[1641822186415,4.15515588,135.96,135.9,71.2142]
[1641822186617,4.15515588,135.97,135.9,71.2142]
[1641822187416,8.15515588,135.97,135.9,71.2142]
[1641822187616,4.0,135.95,135.87,15.44455607]
[1641822187918,5.839,135.94,135.91,1.65027325]
[1641822188317,4.15515588,135.93,135.87,15.44455607]
[1641822189018,4.15515588,135.93,135.86,2.48776128]
[1641822190127,4.0,135.9,135.83,2.48776128]
[1641822190320,11.797,135.9,135.83,2.48776128]
[1641822190521,1.84,135.89,135.83,2.48776128]
[1641822190722,9.99515588,135.89,135.83,2.48776128]
[1641822190922,5.99515588,135.89,135.82,15.44455607]
[1641822191122,4.15515588,135.88,135.81,4.0]
[1641822191325,4.15515588,135.88,135.82,4.0]
[1641822191521,4.15515588,135.88,135.82,7.585]
[1641822191920,4.15515588,135.91,135.82,7.585]
[1641822192322,4.15515588,135.87,135.82,7.585]
[1641822192533,12.25215588,135.87,135.79,81.97445607]
[1641822192725,8.097,135.87,135.79,15.44455607]
[1641822193325,4.15515588,135.86,135.79,15.44455607]